bitfinex-derivatives/quotes_BTCF0:USTF0_20240824
["timestamp","ask_amount","ask_price","bid_price","bid_amount"]
[1724494036383,0.00204,64354.0,64353.0,0.180659]
[1724494036584,0.079698,64354.0,64353.0,0.180659]
[1724494036889,0.079698,64354.0,64353.0,0.541459]
[1724494037183,0.079698,64354.0,64353.0,0.451459]
[1724494037788,0.00204,64354.0,64353.0,0.541459]
[1724494038083,0.07788306,64360.0,64359.0,0.077652]
[1724494038279,0.16788306,64360.0,64359.0,0.077652]
[1724494039389,0.16788306,64360.0,64359.0,0.438452]
[1724494039885,0.16888306,64360.0,64359.0,0.440452]
[1724494040384,0.16988306,64360.0,64359.0,0.442452]
[1724494040584,0.16988306,64360.0,64359.0,0.3648]
[1724494041684,0.16988306,64360.0,64359.0,0.004]
[1724494042989,0.16988306,64360.0,64359.0,0.3648]
[1724494043790,0.07988306,64360.0,64359.0,0.004]
[1724494044088,0.16988306,64360.0,64359.0,0.004]
[1724494048585,0.16988306,64360.0,64359.0,0.3648]
[1724494049293,0.16988306,64360.0,64359.0,0.004]
[1724494049483,0.16988306,64360.0,64359.0,0.3648]
[1724494053293,0.16988306,64360.0,64359.0,0.42663549]
[1724494054197,0.16988306,64360.0,64359.0,0.3648]
[1724494054694,0.16988306,64360.0,64359.0,0.42663549]
[1724494054993,0.24753306,64360.0,64359.0,0.42663549]
[1724494056486,0.24753306,64360.0,64359.0,0.3648]
[1724494056487,0.21952585,64360.0,64359.0,0.3648]
[1724494056692,0.30952585,64360.0,64359.0,0.3648]
[1724494057199,0.24753306,64360.0,64359.0,0.3648]
[1724494058499,0.24753306,64360.0,64359.0,0.004]
[1724494058702,0.24753306,64360.0,64359.0,0.3648]
[1724494059088,0.15753306,64360.0,64359.0,0.3648]
[1724494059401,0.24753306,64360.0,64359.0,0.3648]
[1724494059696,0.30966897,64360.0,64359.0,0.3648]
[1724494060388,0.00223306,64360.0,64359.0,0.442452]
[1724494060591,0.04660023,64361.0,64360.0,0.07765]
[1724494060797,0.04660023,64362.0,64361.0,0.077649]
[1724494060992,0.04660023,64362.0,64361.0,0.28597755]
[1724494061194,0.04660023,64363.0,64362.0,0.077648]
[1724494061391,0.04660023,64363.0,64362.0,0.28597655]
[1724494062004,0.04660023,64363.0,64362.0,0.28601655]
[1724494062297,0.04660023,64364.0,64363.0,0.077647]
[1724494062500,0.00023306,64369.0,64368.0,0.077641]
[1724494062700,0.00023306,64369.0,64368.0,0.167641]
[1724494063398,0.00023306,64369.0,64368.0,0.167681]
[1724494064194,0.09023306,64369.0,64368.0,0.077681]
[1724494064397,0.09223306,64369.0,64368.0,0.077681]
[1724494064797,0.00223306,64369.0,64368.0,0.167681]
[1724494065605,0.04878467,64369.0,64368.0,0.2295873]
[1724494066401,0.00223306,64369.0,64368.0,0.167681]
[1724494067300,0.00223306,64369.0,64368.0,0.19098176]
[1724494069004,0.00223306,64369.0,64368.0,0.25282242]
[1724494069305,0.07987306,64369.0,64368.0,0.22952165]
[1724494069501,0.16987306,64369.0,64368.0,4e-05]
[1724494069803,0.16987306,64369.0,64368.0,0.04642138]
[1724494070004,0.155292,64364.0,64363.0,0.04638138]
[1724494070211,0.13650232,64364.0,64359.0,0.40718138]
[1724494070395,0.19060232,64363.0,64359.0,0.40718138]
[1724494070600,2.209394,64363.0,64359.0,0.3608]
[1724494071112,2.209434,64363.0,64359.0,0.3608]
[1724494071305,0.07765,64360.0,64359.0,0.3608]
[1724494071507,0.167651,64360.0,64355.0,0.0464051]
[1724494071703,0.3608,64362.0,64355.0,0.0464051]
[1724494071704,0.09,64356.0,64355.0,0.0464051]
[1724494072301,0.077656,64355.0,64354.0,0.0464051]
[1724494073006,0.077696,64355.0,64354.0,0.0464051]
[1724494073199,4e-05,64355.0,64354.0,0.077658]
[1724494073602,0.00104,64355.0,64354.0,0.080658]
[1724494073906,0.00204,64355.0,64354.0,0.083658]
[1724494075206,0.00204,64355.0,64354.0,0.4638824]
[1724494078908,0.079696,64355.0,64354.0,0.4638824]
[1724494079216,0.079696,64355.0,64354.0,0.46388265]
[1724494082112,0.079696,64355.0,64354.0,0.444458]
[1724494088227,0.079696,64355.0,64354.0,0.50633146]
[1724494088724,0.079696,64355.0,64354.0,0.444458]
[1724494093229,0.00204,64355.0,64354.0,0.444458]
[1724494093534,0.00176694,64355.0,64354.0,1.52602798]
[1724494093725,0.00023306,64369.0,64363.0,0.077647]
[1724494093726,0.04650985,64364.0,64363.0,0.077647]
[1724494093924,0.04650985,64365.0,64363.0,0.38022483]
[1724494094124,0.04650985,64365.0,64364.0,0.01942483]
[1724494094723,0.04650985,64365.0,64364.0,0.01946483]
[1724494094922,0.04650985,64365.0,64364.0,0.09711083]
[1724494095326,0.12415285,64366.0,64365.0,0.077644]
[1724494095526,0.12415285,64366.0,64365.0,0.09706883]
[1724494095726,0.12414909,64366.0,64365.0,0.09706883]
[1724494095930,0.12414909,64366.0,64365.0,0.077644]
[1724494096236,0.12414909,64366.0,64365.0,0.167684]
[1724494096623,0.12414909,64366.0,64365.0,0.170684]
[1724494097027,0.077643,64366.0,64365.0,0.531484]
[1724494097434,0.12414909,64366.0,64365.0,0.441484]
[1724494097633,0.077643,64366.0,64365.0,0.36384]
[1724494098022,0.077643,64366.0,64365.0,0.36484]
[1724494098524,0.287643,64366.0,64365.0,0.36484]
[1724494098729,0.365286,64366.0,64365.0,0.05046191]
[1724494099030,0.365286,64366.0,64365.0,0.00404]
[1724494099732,2.275286,64366.0,64365.0,0.00404]
[1724494099932,2.29874594,64366.0,64365.0,0.00404]
[1724494101130,2.275286,64366.0,64365.0,0.00404]
[1724494101533,0.077643,64366.0,64365.0,0.00404]
[1724494102033,0.077643,64366.0,64365.0,0.05046191]
[1724494105633,1.987643,64366.0,64365.0,0.05046191]
[1724494105836,2.275286,64366.0,64365.0,0.00404]
[1724494107340,2.352929,64366.0,64365.0,0.00404]
[1724494107542,2.713729,64366.0,64365.0,0.00404]
[1724494107730,2.81377772,64366.0,64365.0,0.00404]
[1724494107935,2.76138523,64366.0,64365.0,0.00404]
[1724494109540,2.7362075,64366.0,64365.0,0.00404]
[1724494109746,3.62746493,64366.0,64365.0,0.00404]
[1724494111538,3.26666493,64366.0,64365.0,0.00404]
[1724494111932,3.62746493,64366.0,64365.0,0.00404]
[1724494112140,3.41746493,64366.0,64365.0,0.00404]
[1724494112338,3.62746493,64366.0,64365.0,0.00404]
[1724494112943,3.39453593,64366.0,64357.0,0.04642191]
[1724494113139,0.07755979,64364.0,64357.0,0.04642191]
[1724494113340,0.07755979,64364.0,64355.0,0.02265187]
[1724494113341,0.15531,64356.0,64355.0,0.08453629]
[1724494113652,0.155312,64355.0,64354.0,0.06188442]
[1724494113942,0.232974,64354.0,64353.0,0.06188442]
[1724494114152,0.232974,64354.0,64350.0,0.06188442]
[1724494114153,0.155322,64351.0,64350.0,0.06188442]
[1724494114351,0.077662,64350.0,64349.0,0.02318828]
[1724494114655,0.155328,64349.0,64348.0,0.06206123]
[1724494115239,0.155328,64349.0,64348.0,0.08561316]
[1724494115645,0.155368,64349.0,64348.0,0.08561316]
[1724494116243,0.155368,64349.0,64348.0,0.02372874]
[1724494116438,0.156368,64349.0,64348.0,0.02372874]
[1724494116851,0.157368,64349.0,64348.0,0.02572874]
[1724494120359,0.157368,64349.0,64348.0,0.04861977]
[1724494121351,0.157368,64349.0,64348.0,0.00217681]
[1724494124158,0.595832,64349.0,64348.0,0.00217681]
[1724494124355,0.6423695,64349.0,64348.0,0.00217681]
[1724494124656,0.595832,64349.0,64348.0,0.00217681]
[1724494125750,0.235032,64349.0,64348.0,0.00217681]
[1724494125958,0.234032,64349.0,64348.0,0.00217681]
[1724494126149,0.235032,64349.0,64348.0,0.00317681]
[1724494126355,0.234032,64349.0,64348.0,0.00117681]
[1724494126551,0.235032,64349.0,64348.0,0.00417681]
[1724494128665,0.157368,64349.0,64348.0,0.00417681]
[1724494135264,0.20384261,64349.0,64348.0,0.00417681]
[1724494135669,0.20384261,64349.0,64348.0,0.05061977]
[1724494136169,0.157368,64349.0,64348.0,0.05061977]
[1724494136467,0.157368,64349.0,64348.0,0.00417681]
[1724494140372,0.157368,64349.0,64348.0,0.02722777]
[1724494140565,0.247368,64349.0,64348.0,0.00417681]
[1724494141271,0.30935959,64349.0,64348.0,0.00417681]
[1724494142265,0.30935959,64349.0,64348.0,0.06606123]
[1724494143274,0.247368,64349.0,64348.0,0.06606123]
[1724494143479,0.247368,64349.0,64348.0,0.00417681]
[1724494144176,0.247368,64349.0,64348.0,0.0662215]
[1724494144378,0.247368,64349.0,64348.0,0.00417681]
[1724494145578,0.246368,64349.0,64348.0,0.00117681]
[1724494145780,0.246368,64349.0,64348.0,0.00417681]
[1724494146275,0.245368,64349.0,64348.0,0.00417681]
[1724494146480,0.245368,64349.0,64348.0,0.00217681]
[1724494148076,0.245368,64349.0,64348.0,0.06423197]
[1724494149382,0.33858445,64349.0,64348.0,0.00217681]
[1724494150472,0.47780855,64349.0,64348.0,0.00217681]
[1724494150781,2.38780855,64349.0,64348.0,0.00217681]
[1724494151084,2.43548109,64349.0,64348.0,0.00217681]
[1724494151282,2.24858445,64349.0,64348.0,0.00217681]
[1724494151780,2.29625701,64349.0,64348.0,0.00217681]
[1724494151988,2.43548111,64349.0,64348.0,0.00217681]
[1724494152376,2.155368,64349.0,64348.0,0.00117681]
[1724494155286,2.31070234,64349.0,64348.0,0.00117681]
[1724494155585,2.233032,64349.0,64348.0,0.00117681]
[1724494155784,2.61901459,64349.0,64348.0,0.04773832]
[1724494156184,2.61901459,64349.0,64348.0,0.00117681]
[1724494156888,3.48521459,64349.0,64348.0,0.00117681]
[1724494157085,2.52901459,64349.0,64348.0,0.00117681]
[1724494157283,2.233032,64349.0,64348.0,0.04773832]
[1724494157589,2.31069673,64349.0,64348.0,0.04773832]
[1724494157783,2.233032,64349.0,64348.0,0.00117681]
[1724494157993,2.143032,64349.0,64348.0,0.00117681]
[1724494158289,2.233032,64349.0,64348.0,0.00117681]
[1724494159675,0.155368,64349.0,64348.0,0.00117681]
[1724494160085,0.077704,64349.0,64348.0,0.00117681]
[1724494160777,0.077704,64349.0,64348.0,0.2309022]
[1724494160984,0.12429386,64349.0,64348.0,0.16884181]
[1724494161182,4e-05,64349.0,64348.0,0.16884181]
[1724494161481,4e-05,64349.0,64348.0,0.18826887]
[1724494163493,4e-05,64349.0,64348.0,0.18826864]
[1724494163685,4e-05,64349.0,64348.0,0.16884181]
[1724494163885,4e-05,64349.0,64348.0,0.18826877]
[1724494164085,4e-05,64349.0,64348.0,0.07884181]
[1724494164582,4e-05,64349.0,64348.0,0.21536308]
[1724494164988,4e-05,64349.0,64348.0,0.16884181]
[1724494165384,0.07770473,64349.0,64348.0,0.16884181]
[1724494165587,0.07770473,64349.0,64348.0,0.21536188]
[1724494165784,0.07770473,64349.0,64348.0,0.16884181]
[1724494166189,0.16770473,64349.0,64348.0,0.07884181]
[1724494167486,0.07770473,64349.0,64348.0,0.63504181]
[1724494167694,4e-05,64349.0,64348.0,0.16884181]
[1724494167886,0.07770473,64349.0,64348.0,0.16884181]
[1724494168091,0.07770473,64349.0,64348.0,0.63504181]
[1724494169090,0.07770473,64349.0,64348.0,0.99584181]
[1724494170893,4e-05,64349.0,64348.0,0.99584181]
[1724494171492,4e-05,64349.0,64348.0,0.52964181]
[1724494173095,0.07366473,64350.0,64348.0,1.01526852]
[1724494173291,0.07366473,64350.0,64349.0,0.09709071]
[1724494173597,0.07366473,64350.0,64349.0,0.18709071]
[1724494173896,0.07366473,64350.0,64349.0,0.18713071]
[1724494174694,0.0932044,64355.0,64354.0,0.077658]
[1724494174897,0.0932044,64355.0,64354.0,0.528458]
[1724494175395,0.0932044,64355.0,64354.0,0.528498]
[1724494176500,0.1042044,64355.0,64354.0,0.438498]
[1724494178693,0.011,64355.0,64354.0,0.438498]
[1724494178999,0.088656,64355.0,64354.0,0.438498]
[1724494179198,0.138156,64355.0,64354.0,0.438498]
[1724494182195,0.138156,64355.0,64354.0,0.46277867]
[1724494184096,0.138156,64355.0,64354.0,0.38512067]
[1724494186403,0.193328,64355.0,64354.0,0.46277867]
[1724494187610,0.193328,64355.0,64354.0,0.38512067]
[1724494188808,2.21206647,64355.0,64354.0,0.02432067]
[1724494188996,2.2118612,64355.0,64354.0,0.02432067]
[1724494189200,2.103328,64355.0,64354.0,0.02432067]
[1724494189395,2.103328,64355.0,64354.0,4e-05]
[1724494189396,2.048156,64355.0,64354.0,4e-05]
[1724494194808,2.07063362,64355.0,64354.0,4e-05]
[1724494196207,2.1171686,64355.0,64354.0,4e-05]
[1724494196712,2.07063362,64355.0,64354.0,0.06195908]
[1724494197303,2.07063362,64355.0,64354.0,0.08624208]
[1724494198412,2.16063362,64355.0,64354.0,0.024323]
[1724494198602,2.16063362,64355.0,64354.0,0.0863407]
[1724494198805,2.16063362,64355.0,64354.0,0.08634026]
[1724494199018,2.16063362,64355.0,64354.0,0.06205719]
[1724494199509,2.16063362,64355.0,64354.0,0.02432294]
[1724494200518,0.40594562,64355.0,64354.0,4e-05]
[1724494200813,0.40594562,64355.0,64354.0,0.04657366]
[1724494201019,2.31594562,64355.0,64354.0,0.04657366]
[1724494201221,2.31594562,64355.0,64354.0,4e-05]
[1724494203617,0.32828962,64355.0,64354.0,0.04657006]
[1724494208315,0.32828962,64355.0,64354.0,4e-05]
[1724494209121,0.23828962,64355.0,64354.0,4e-05]
[1724494209314,0.32828962,64355.0,64354.0,4e-05]
[1724494209716,0.23828962,64355.0,64354.0,4e-05]
[1724494209919,0.32828962,64355.0,64354.0,4e-05]
[1724494214518,0.11113362,64355.0,64354.0,0.04657006]
[1724494216323,0.11113362,64355.0,64354.0,4e-05]
[1724494218318,0.13631346,64355.0,64354.0,4e-05]
[1724494219726,0.13631346,64355.0,64354.0,0.02432378]
[1724494221123,0.13631346,64355.0,64354.0,4e-05]
[1724494221423,0.11113362,64355.0,64354.0,0.02432378]
[1724494222421,0.11113362,64355.0,64354.0,0.08636632]
[1724494222740,0.11113362,64355.0,64354.0,0.02432378]
[1724494223330,0.11113362,64355.0,64354.0,0.08636632]
[1724494224330,0.11113362,64355.0,64354.0,0.06208254]
[1724494224624,0.11113362,64355.0,64354.0,0.08636603]
[1724494224820,0.11113362,64355.0,64354.0,0.06208254]
[1724494228728,0.11113362,64355.0,64354.0,4e-05]
[1724494229328,0.17916181,64355.0,64354.0,4e-05]
[1724494229632,0.20434106,64355.0,64354.0,4e-05]
[1724494231621,0.3286276,64355.0,64354.0,4e-05]
[1724494232027,0.20434106,64355.0,64354.0,4e-05]
[1724494232432,0.11113362,64355.0,64354.0,4e-05]
[1724494233535,0.11113362,64355.0,64354.0,0.06210524]
[1724494233723,0.11113362,64355.0,64354.0,4e-05]
[1724494235134,0.11113362,64355.0,64354.0,0.06210495]
[1724494235631,0.11113362,64355.0,64354.0,4e-05]
[1724494237940,0.11113362,64355.0,64354.0,0.06210898]
[1724494238140,0.11113362,64355.0,64354.0,4e-05]
[1724494239359,0.11113362,64355.0,64354.0,0.06210896]
[1724494239557,0.11113362,64355.0,64354.0,4e-05]
[1724494240150,0.11113362,64355.0,64354.0,0.06211098]
[1724494242657,0.11113362,64355.0,64354.0,4e-05]
[1724494242855,0.11113362,64355.0,64354.0,0.06211506]
[1724494243759,0.18881332,64355.0,64354.0,0.06211506]
[1724494243952,0.11113362,64355.0,64354.0,0.06211671]
[1724494244461,0.11113362,64355.0,64354.0,4e-05]
[1724494245158,0.11113362,64355.0,64354.0,0.0621186]
[1724494245860,0.18881332,64355.0,64354.0,0.0621186]
[1724494246059,0.18881332,64355.0,64354.0,4e-05]
[1724494246358,0.10513362,64355.0,64354.0,0.06211903]
[1724494246550,0.10513362,64355.0,64354.0,4e-05]
[1724494246551,0.11213362,64355.0,64354.0,4e-05]
[1724494247061,0.10713362,64355.0,64354.0,4e-05]
[1724494247360,0.11313362,64355.0,64354.0,4e-05]
[1724494254065,0.11313362,64355.0,64354.0,0.02432242]
[1724494254655,0.11313362,64355.0,64354.0,0.10198042]
[1724494254867,0.013,64355.0,64354.0,0.19198042]
[1724494255166,0.07514454,64355.0,64354.0,0.167698]
[1724494255467,0.013,64355.0,64354.0,0.167698]
[1724494256964,0.013,64355.0,64354.0,0.077698]
[1724494257358,0.013,64355.0,64354.0,0.1010756]
[1724494258654,0.03817718,64355.0,64354.0,0.1010756]
[1724494264572,0.013,64355.0,64354.0,0.1010756]
[1724494266161,0.09063583,64355.0,64354.0,0.14760336]
[1724494266367,0.09063583,64355.0,64354.0,0.1010756]
[1724494266973,0.09063583,64355.0,64354.0,0.4618756]
[1724494267368,0.09063583,64355.0,64354.0,0.50840336]
[1724494267567,0.013,64355.0,64354.0,0.48130056]
[1724494268171,0.013,64355.0,64354.0,0.4618756]
[1724494269167,0.013,64355.0,64354.0,0.1010756]
[1724494269366,0.013,64355.0,64354.0,0.4618756]
[1724494269675,0.013,64355.0,64354.0,0.48130056]
[1724494270772,0.013,64355.0,64354.0,0.4618756]
[1724494271068,0.09063583,64355.0,64354.0,0.4618756]
[1724494271263,0.16829183,64355.0,64354.0,0.4618756]
[1724494273662,0.11583319,64355.0,64354.0,0.4618756]
[1724494274070,0.11583319,64355.0,64354.0,0.1010756]
[1724494274271,0.11583319,64355.0,64354.0,0.4618756]
[1724494279579,0.1158332,64355.0,64354.0,0.4618756]
[1724494279882,0.1158332,64355.0,64354.0,0.50839213]
[1724494281575,0.1158332,64355.0,64354.0,0.50841742]
[1724494282177,0.1158332,64355.0,64354.0,0.4618756]
[1724494282479,0.1158332,64355.0,64354.0,0.1010756]
[1724494282776,0.077664,64349.0,64344.0,0.07732509]
[1724494282988,0.57312897,64348.0,64347.0,6e-08]
[1724494283180,2.5617322,64348.0,64347.0,6e-08]
[1724494283368,3.4279322,64348.0,64347.0,6e-08]
[1724494283572,3.4279722,64348.0,64347.0,6e-08]
[1724494283775,3.42809392,64348.0,64347.0,6e-08]
[1724494284376,3.42809392,64348.0,64347.0,0.00100006]
[1724494284579,0.077678,64337.0,64336.0,0.3608]
[1724494284881,0.22971189,64337.0,64336.0,0.3608]
[1724494285280,0.167678,64337.0,64336.0,0.3608]
[1724494285575,0.167718,64337.0,64336.0,0.3608]
[1724494285882,0.168718,64337.0,64336.0,0.3618]
[1724494286381,0.169718,64337.0,64336.0,0.3618]
[1724494286682,0.169718,64337.0,64336.0,0.001]
[1724494292185,0.168718,64337.0,64336.0,0.001]
[1724494292381,0.07768,64335.0,64334.0,0.02300224]
[1724494292682,0.077683,64333.0,64332.0,0.3608]
[1724494293481,0.077723,64333.0,64332.0,0.38359942]
[1724494293788,0.077723,64333.0,64332.0,0.46128342]
[1724494295084,0.078723,64333.0,64332.0,0.46128342]
[1724494295777,0.079723,64333.0,64332.0,0.46128342]
[1724494296973,0.24757891,64333.0,64332.0,0.02279942]
[1724494297176,0.077684,64332.0,64331.0,0.00056]
[1724494297477,2.034784,64332.0,64331.0,0.00056]
[1724494297976,2.034824,64332.0,64331.0,0.00056]
[1724494298176,2.05727578,64332.0,64331.0,0.00056]
[1724494298476,2.10697578,64332.0,64331.0,0.00056]
[1724494298673,2.10797578,64332.0,64331.0,0.00056]
[1724494298884,2.18565978,64332.0,64331.0,0.00056]
[1724494301885,2.19465978,64332.0,64331.0,0.00056]
[1724494302088,2.20565978,64332.0,64331.0,0.00056]
[1724494302593,2.21165978,64332.0,64331.0,0.00056]
[1724494303283,2.19765978,64332.0,64331.0,0.00056]
[1724494303477,2.21165978,64332.0,64331.0,0.00056]
[1724494305276,2.28934378,64332.0,64331.0,0.00056]
[1724494305485,2.28934378,64332.0,64325.0,0.02261581]
[1724494305486,2.05629178,64332.0,64325.0,0.02261581]
[1724494305783,2.05629178,64332.0,64324.0,0.3608]
[1724494305784,0.155384,64325.0,64324.0,0.3608]
[1724494306088,0.155384,64325.0,64324.0,0.3839776]
[1724494306788,0.245384,64325.0,64324.0,0.3839776]
[1724494307192,0.253384,64325.0,64324.0,0.3839776]
[1724494307884,0.254384,64325.0,64324.0,0.3839776]
[1724494308782,0.264384,64325.0,64324.0,0.3839776]
[1724494311493,0.264384,64325.0,64324.0,0.43055143]
[1724494312284,0.31088562,64325.0,64324.0,0.3839776]
[1724494312484,0.31088562,64325.0,64324.0,0.3608]
[1724494312884,2.22088562,64325.0,64324.0,0.3608]
[1724494315691,2.096692,64325.0,64324.0,0.04653481]
[1724494315890,2.096692,64325.0,64321.0,0.06208495]
[1724494315891,2.10528613,64325.0,64321.0,0.04653481]
[1724494316099,0.077697,64321.0,64319.0,0.04653481]
[1724494316391,0.0777,64319.0,64318.0,0.04653481]
[1724494316600,0.16781602,64319.0,64318.0,0.04653481]
[1724494317595,0.17281602,64319.0,64318.0,0.04653481]
[1724494317797,0.25051602,64319.0,64318.0,0.04653481]
[1724494318185,0.25051602,64319.0,64314.0,0.42288495]
[1724494318186,0.155402,64318.0,64317.0,0.04653481]
[1724494318387,0.245402,64318.0,64317.0,0.04653481]
[1724494319793,0.250402,64318.0,64317.0,0.04653481]
[1724494319990,0.254402,64318.0,64317.0,0.04653481]
[1724494321399,0.254402,64318.0,64314.0,0.42288495]
[1724494321400,0.077705,64315.0,64314.0,0.42288495]
[1724494321596,0.167705,64315.0,64314.0,0.42288495]
[1724494322699,0.169705,64315.0,64314.0,0.42288495]
[1724494324394,0.169705,64315.0,64314.0,0.3608]
[1724494325993,0.077707,64313.0,64312.0,0.077708]
[1724494326200,0.167707,64313.0,64312.0,0.438508]
[1724494328701,0.167707,64313.0,64312.0,0.63424495]
[1724494328702,0.077707,64313.0,64312.0,0.63424495]
[1724494329108,0.0388333,64313.0,64312.0,0.63424495]
[1724494331198,0.1288333,64313.0,64312.0,0.63424495]
[1724494335395,0.14703048,64313.0,64312.0,0.63424495]
[1724494336407,0.14703048,64313.0,64312.0,0.55691986]
[1724494337110,0.14703048,64313.0,64312.0,0.63456059]
[1724494337303,0.14703048,64313.0,64312.0,0.55691986]
[1724494337907,0.14703048,64313.0,64312.0,0.50062324]
[1724494337908,0.20906437,64313.0,64312.0,0.50062324]
[1724494338104,0.20906437,64313.0,64312.0,0.13982324]
[1724494338301,0.20906437,64313.0,64312.0,0.50062324]
[1724494338496,0.14703048,64313.0,64312.0,0.50062324]
[1724494339019,0.14703048,64313.0,64312.0,0.13982324]
[1724494339208,0.14703048,64313.0,64312.0,0.50062324]
[1724494340203,0.14703048,64313.0,64312.0,0.13982324]
[1724494340401,0.14703048,64313.0,64312.0,0.50062324]
[1724494340608,0.14703048,64313.0,64312.0,0.52006]
[1724494341010,0.14703048,64313.0,64312.0,0.55691679]
[1724494341808,0.14703048,64313.0,64312.0,0.58121275]
[1724494342209,0.0388333,64313.0,64312.0,0.58121275]
[1724494342412,0.1288333,64313.0,64312.0,0.60064951]
[1724494343008,0.1288333,64313.0,64312.0,0.23984951]
[1724494343206,0.1288333,64313.0,64312.0,0.60064951]
[1724494345509,0.17539721,64313.0,64312.0,0.60064951]
[1724494346105,0.17539721,64313.0,64312.0,0.23984951]
[1724494346305,0.17539721,64313.0,64312.0,0.60064951]
[1724494346510,0.17539721,64313.0,64312.0,0.57635355]
[1724494346712,0.1288333,64313.0,64312.0,0.60064951]
[1724494347711,0.1288333,64313.0,64312.0,0.58121275]
[1724494347908,0.1288333,64313.0,64312.0,0.60064951]
[1724494348108,0.1288333,64313.0,64312.0,0.58121275]
[1724494348310,0.1288333,64313.0,64312.0,0.60064951]
[1724494348920,0.17543186,64313.0,64312.0,0.60064951]
[1724494349516,0.17543186,64313.0,64312.0,0.23984951]
[1724494349711,0.17543186,64313.0,64312.0,0.60064951]
[1724494350422,0.17543186,64313.0,64312.0,0.23984951]
[1724494350612,0.17543186,64313.0,64312.0,0.60064951]
[1724494351015,0.17543186,64313.0,64312.0,0.23984951]
[1724494351516,0.17543186,64313.0,64312.0,0.60064951]
[1724494351915,0.1288333,64313.0,64312.0,0.60064951]
[1724494352521,0.1288333,64313.0,64312.0,0.23984951]
[1724494352721,0.1288333,64313.0,64312.0,0.60064951]
[1724494353225,0.1288333,64313.0,64312.0,0.19611679]
[1724494353721,0.1288333,64313.0,64312.0,0.60064991]
[1724494354116,0.1288333,64313.0,64312.0,0.23984991]
[1724494354323,0.1288333,64313.0,64312.0,0.60064991]
[1724494354618,0.17542427,64313.0,64312.0,0.60064991]
[1724494354823,0.17542427,64313.0,64312.0,0.58121297]
[1724494355009,0.17542427,64313.0,64312.0,0.55691788]
[1724494355424,0.17542427,64313.0,64312.0,0.19611788]
[1724494355722,0.17542427,64313.0,64312.0,0.55691788]
[1724494356523,0.1288333,64313.0,64312.0,0.55691788]
[1724494357620,0.17542427,64313.0,64312.0,0.47920988]
[1724494357817,0.17542427,64313.0,64312.0,0.13784723]
[1724494357818,0.2065403,64313.0,64312.0,0.13784723]
[1724494358124,0.077708,64312.0,64311.0,0.00017548]
[1724494358326,0.13982412,64312.0,64311.0,0.00017548]
[1724494360425,0.077708,64312.0,64311.0,0.00017548]
[1724494360623,0.13982412,64312.0,64311.0,0.00017548]
[1724494361125,0.077708,64312.0,64311.0,0.06232046]
[1724494361622,0.155416,64312.0,64311.0,0.06232046]
[1724494362127,0.21753212,64312.0,64311.0,0.00017548]
[1724494363019,0.155416,64312.0,64311.0,0.00017548]
[1724494364220,0.245416,64312.0,64311.0,0.00017548]
[1724494366130,0.29195305,64312.0,64311.0,0.06232046]
[1724494366320,0.29195163,64312.0,64311.0,0.06232046]
[1724494368427,0.245416,64312.0,64311.0,0.00017548]
[1724494371734,0.29194783,64312.0,64311.0,0.00017548]
[1724494371926,0.245416,64312.0,64311.0,0.00017548]
[1724494372834,0.2919481,64312.0,64311.0,0.00017548]
[1724494376332,0.245416,64312.0,64311.0,0.00017548]
[1724494376725,0.29195385,64312.0,64311.0,0.00017548]
[1724494379539,0.245416,64312.0,64311.0,0.06232046]
[1724494381131,0.27061151,64312.0,64311.0,0.00017548]
[1724494383437,0.36366234,64312.0,64311.0,0.00017548]
[1724494383634,0.27061151,64312.0,64311.0,0.00017548]
[1724494385146,0.30747712,64312.0,64311.0,0.06232046]
[1724494385440,0.245416,64312.0,64311.0,0.06233548]
[1724494385643,0.245416,64312.0,64311.0,0.00017548]
[1724494386444,0.245416,64312.0,64311.0,0.06233548]
[1724494387041,0.245416,64312.0,64311.0,0.00017548]
[1724494387953,0.245416,64312.0,64311.0,0.06236106]
[1724494388749,0.245416,64312.0,64311.0,0.00017548]
[1724494389050,0.245456,64312.0,64311.0,0.00017548]
[1724494389750,0.245456,64312.0,64311.0,0.0623519]
[1724494390048,0.245456,64312.0,64311.0,0.00017548]
[1724494390245,0.245456,64312.0,64311.0,0.0623519]
[1724494390450,0.323164,64312.0,64311.0,0.0623519]
[1724494391555,0.323164,64312.0,64311.0,0.00017548]
[1724494392052,2.233164,64312.0,64311.0,0.00017548]
[1724494400148,2.233164,64312.0,64311.0,0.04679335]
[1724494402051,2.233164,64312.0,64311.0,0.00017548]
[1724494403161,2.31074041,64312.0,64311.0,0.00017548]
[1724494403652,2.35594041,64312.0,64311.0,0.00017548]
[1724494404755,2.278364,64312.0,64311.0,0.00017548]
[1724494406358,2.278364,64312.0,64311.0,0.04678855]
[1724494409363,2.278364,64312.0,64311.0,0.00017548]
[1724494409868,2.278364,64312.0,64311.0,0.04679681]
[1724494412363,2.278364,64312.0,64311.0,0.00017548]
[1724494413358,2.35594041,64312.0,64311.0,0.00017548]
[1724494414478,2.36194041,64312.0,64311.0,0.00017548]
[1724494414868,2.36894041,64312.0,64311.0,0.00017548]
[1724494416276,2.43233719,64312.0,64311.0,0.00017548]
[1724494418381,0.077722,64303.0,64302.0,0.077723]
[1724494418679,0.33264907,64303.0,64302.0,0.077723]
[1724494418881,0.40072449,64303.0,64302.0,0.077723]
[1724494419080,0.26103416,64303.0,64302.0,0.077723]
[1724494419278,0.167762,64303.0,64302.0,0.27389373]
[1724494419583,0.16794392,64303.0,64302.0,0.15545537]
[1724494419778,0.16794392,64303.0,64302.0,0.27389335]
[1724494420673,0.16794392,64303.0,64302.0,0.15545537]
[1724494421180,0.16794392,64303.0,64302.0,0.27389332]
[1724494421477,0.16794392,64303.0,64302.0,0.15545537]
[1724494421878,0.16794392,64303.0,64302.0,0.27389298]
[1724494423177,0.16794392,64303.0,64302.0,0.077723]
[1724494425378,0.23004563,64303.0,64302.0,0.09716463]
[1724494426482,0.16794392,64303.0,64302.0,0.09716463]
[1724494426779,0.18647613,64303.0,64302.0,0.09716463]
[1724494427984,0.18647613,64303.0,64302.0,0.09716447]
[1724494428581,0.24857784,64303.0,64302.0,0.09716447]
[1724494428985,0.24857784,64303.0,64302.0,0.01944147]
[1724494429185,0.18647613,64303.0,64302.0,0.01944147]
[1724494429586,0.24857784,64303.0,64302.0,0.01944147]
[1724494430082,0.18647613,64303.0,64302.0,0.01944147]
[1724494430977,0.077723,64302.0,64301.0,0.07773237]
[1724494431176,0.12426787,64302.0,64301.0,0.07773237]
[1724494431578,0.12426787,64302.0,64301.0,0.19616978]
[1724494431784,0.12430787,64302.0,64301.0,0.21561086]